Department Family,Entity,Cleared Date,Expense Type,Expense Area,Supplier Name,Reference,Amount,VAT Reg No
Department of Health,Maidstone and Tunbridge Wells NHS Trust,09/01/2014,NHS NON HC - ALL OTHER SERVICS,THERAPY SERVICES,KENT COMMUNITY HEALTH NHS TRUST,523957,38477.05,omitted
Department of Health,Maidstone and Tunbridge Wells NHS Trust,29/01/2014,MSSE - HIRE OF EQUIPMENT,TRAUMA ORTHOPAEDIC CLIN DIR,JOHNSON & JOHNSON MEDICAL LTD,529179,28513.18,omitted
Department of Health,Maidstone and Tunbridge Wells NHS Trust,16/01/2014,EXTERNAL PAYROLL SERV PROVIDER,PAYROLL,NHS SHARED BUSINESS SERVICES LIMITED,529523,39309.8,omitted
Department of Health,Maidstone and Tunbridge Wells NHS Trust,14/01/2014,STOCK - DRUGS,CONTROL ACCOUNTS (BALANCE SHT),NOVARTIS PHARMACEUTICALS UK LTD,30131593,26718,omitted
Department of Health,Maidstone and Tunbridge Wells NHS Trust,14/01/2014,STOCK - DRUGS,CONTROL ACCOUNTS (BALANCE SHT),NOVARTIS PHARMACEUTICALS UK LTD,30131594,62821.92,omitted
Department of Health,Maidstone and Tunbridge Wells NHS Trust,14/01/2014,SUNDRY CONSUMABLES,CONTROL ACCOUNTS (BALANCE SHT),NHS SUPPLY CHAIN,532120,49208.43,omitted
Department of Health,Maidstone and Tunbridge Wells NHS Trust,14/01/2014,SUNDRY CONSUMABLES,CONTROL ACCOUNTS (BALANCE SHT),NHS SUPPLY CHAIN,532121,101439.02,omitted
Department of Health,Maidstone and Tunbridge Wells NHS Trust,16/01/2014,STOCK - DRUGS,CONTROL ACCOUNTS (BALANCE SHT),NOVARTIS PHARMACEUTICALS UK LTD,30131599,53436,omitted
Department of Health,Maidstone and Tunbridge Wells NHS Trust,09/01/2014,STOCK - DRUGS,CONTROL ACCOUNTS (BALANCE SHT),ROCHE PRODUCTS LTD,30132039,41926.68,omitted
Department of Health,Maidstone and Tunbridge Wells NHS Trust,09/01/2014,STOCK - DRUGS,CONTROL ACCOUNTS (BALANCE SHT),ROCHE PRODUCTS LTD,30131838,57436.54,omitted
Department of Health,Maidstone and Tunbridge Wells NHS Trust,29/01/2014,EXTERNAL PAYROLL SERV PROVIDER,PAYROLL,NHS SHARED BUSINESS SERVICES LIMITED,534146,39309.8,omitted
Department of Health,Maidstone and Tunbridge Wells NHS Trust,14/01/2014,SUNDRY CONSUMABLES,CONTROL ACCOUNTS (BALANCE SHT),NHS SUPPLY CHAIN,533865,42244.92,omitted
Department of Health,Maidstone and Tunbridge Wells NHS Trust,14/01/2014,SUNDRY CONSUMABLES,CONTROL ACCOUNTS (BALANCE SHT),NHS SUPPLY CHAIN,533866,95374.12,omitted
Department of Health,Maidstone and Tunbridge Wells NHS Trust,14/01/2014,PRINTING & STATIONERY,SUPPLIES,DANWOOD GROUP LTD,533841,26146.42,omitted
Department of Health,Maidstone and Tunbridge Wells NHS Trust,14/01/2014,PRINTING & STATIONERY,SUPPLIES,DANWOOD GROUP LTD,533844,118852,omitted
Department of Health,Maidstone and Tunbridge Wells NHS Trust,29/01/2014,STOCK - DRUGS,CONTROL ACCOUNTS (BALANCE SHT),NOVARTIS PHARMACEUTICALS UK LTD,30132572,53436,omitted
Department of Health,Maidstone and Tunbridge Wells NHS Trust,16/01/2014,STOCK - DRUGS,CONTROL ACCOUNTS (BALANCE SHT),ROCHE PRODUCTS LTD,30132579,42529.92,omitted
Department of Health,Maidstone and Tunbridge Wells NHS Trust,29/01/2014,STOCK - DRUGS,CONTROL ACCOUNTS (BALANCE SHT),NOVARTIS PHARMACEUTICALS UK LTD,30132573,53436,omitted
Department of Health,Maidstone and Tunbridge Wells NHS Trust,29/01/2014,NHS NON HC - NUCLEAR MED / MRI,GEN MEDICINE AND ELDERLY,KENT COMMUNITY HEALTH NHS TRUST,534837,35888.27,omitted
Department of Health,Maidstone and Tunbridge Wells NHS Trust,16/01/2014,ENGINEERING MATERIALS,ELECTRICAL MEDICAL EQUIP MAINT,WASSENBURG LIMITED,534710,24080,omitted
Department of Health,Maidstone and Tunbridge Wells NHS Trust,16/01/2014,STOCK - DRUGS,CONTROL ACCOUNTS (BALANCE SHT),ROCHE PRODUCTS LTD,30132584,25759.2,omitted
Department of Health,Maidstone and Tunbridge Wells NHS Trust,16/01/2014,STOCK - DRUGS,CONTROL ACCOUNTS (BALANCE SHT),ROCHE PRODUCTS LTD,30132586,32709.72,omitted
Department of Health,Maidstone and Tunbridge Wells NHS Trust,14/01/2014,COMPUTER CONSUMABLES,ICT MAINTENANCE,INSIGHT DIRECT (UK) LTD,536516,44193.6,omitted
Department of Health,Maidstone and Tunbridge Wells NHS Trust,29/01/2014,STOCK - DRUGS,CONTROL ACCOUNTS (BALANCE SHT),NOVARTIS PHARMACEUTICALS UK LTD,30133888,26718,omitted
Department of Health,Maidstone and Tunbridge Wells NHS Trust,23/01/2014,STOCK - DRUGS,CONTROL ACCOUNTS (BALANCE SHT),ALCURA UK LIMITED,539664,36088.96,omitted
Department of Health,Maidstone and Tunbridge Wells NHS Trust,23/01/2014,STOCK - DRUGS,CONTROL ACCOUNTS (BALANCE SHT),ROCHE PRODUCTS LTD,30133897,53119.92,omitted
Department of Health,Maidstone and Tunbridge Wells NHS Trust,23/01/2014,SURGICAL INSTRUMENTS,THEATRES DEPARTMENT,IH STERILE SERVICES LIMITED,538215,124569.89,omitted
Department of Health,Maidstone and Tunbridge Wells NHS Trust,14/01/2014,ENERGY - GAS,ENERGY AND UTILITIES,CORONA ENERGY LTD,539463,75901.54,omitted
Department of Health,Maidstone and Tunbridge Wells NHS Trust,14/01/2014,ENERGY - GAS,ENERGY AND UTILITIES,CORONA ENERGY LTD,539580,46238.89,omitted
Department of Health,Maidstone and Tunbridge Wells NHS Trust,23/01/2014,STOCK - DRUGS,CONTROL ACCOUNTS (BALANCE SHT),ROCHE PRODUCTS LTD,30133902,44641.08,omitted
Department of Health,Maidstone and Tunbridge Wells NHS Trust,29/01/2014,STOCK - DRUGS,CONTROL ACCOUNTS (BALANCE SHT),ROCHE PRODUCTS LTD,30133906,37834.32,omitted
Department of Health,Maidstone and Tunbridge Wells NHS Trust,29/01/2014,MANAGEMENT CONSULTANCY,DIRECTOR OF FINANCE,MAXENTIUS & CO,540171,82800,omitted
Department of Health,Maidstone and Tunbridge Wells NHS Trust,29/01/2014,CONTRACTED OUT BUS SERVICES,FACILITIES MANAGEMENT,ARRIVA KENT AND SURREY LIMITED,539680,36161.5,omitted
Department of Health,Maidstone and Tunbridge Wells NHS Trust,29/01/2014,DRUGS - FP10,CANCER CENTRE,PRESCRIPTION PRICING AUTHORITY,543269,58901.13,omitted
Department of Health,Maidstone and Tunbridge Wells NHS Trust,29/01/2014,DRUGS - FP10,CHILDRENS SERVICES,PRESCRIPTION PRICING AUTHORITY,543269,20931,omitted
Department of Health,Maidstone and Tunbridge Wells NHS Trust,29/01/2014,DRUGS - FP10,GEN MEDICINE AND ELDERLY,PRESCRIPTION PRICING AUTHORITY,543269,12604,omitted
Department of Health,Maidstone and Tunbridge Wells NHS Trust,29/01/2014,DRUGS - FP10,SURGERY DEPARTMENT,PRESCRIPTION PRICING AUTHORITY,543269,14599,omitted
Department of Health,Maidstone and Tunbridge Wells NHS Trust,29/01/2014,DRUGS - FP10,WOMENS SERVICES,PRESCRIPTION PRICING AUTHORITY,543269,331,omitted
Department of Health,Maidstone and Tunbridge Wells NHS Trust,09/01/2014,COMPUTER SOFTWARE SUPPORT,HIS CENTRAL FUNCTIONS AND MNGT,BT GLOBAL SERVICES SOLUTIONS,539065,95519.82,omitted
Department of Health,Maidstone and Tunbridge Wells NHS Trust,21/01/2014,PFI OPERATING COSTS,PFI PROJECT,KENT & EAST SUSSEX WEALD HOSPITAL LTD,544477,2199526.07,omitted
Department of Health,Maidstone and Tunbridge Wells NHS Trust,21/01/2014,PFI OPERATING COSTS,PFI PROJECT,KENT & EAST SUSSEX WEALD HOSPITAL LTD,544477,5196.28,omitted
Department of Health,Maidstone and Tunbridge Wells NHS Trust,21/01/2014,PFI OPERATING COSTS,PFI PROJECT,KENT & EAST SUSSEX WEALD HOSPITAL LTD,544477,8786.98,omitted
Department of Health,Maidstone and Tunbridge Wells NHS Trust,29/01/2014,STOCK - DRUGS,CONTROL ACCOUNTS (BALANCE SHT),ROCHE PRODUCTS LTD,30134600,43144.92,omitted
Department of Health,Maidstone and Tunbridge Wells NHS Trust,29/01/2014,STOCK - DRUGS,CONTROL ACCOUNTS (BALANCE SHT),ROCHE PRODUCTS LTD,30135205,27239.7,omitted
Department of Health,Maidstone and Tunbridge Wells NHS Trust,29/01/2014,CAPITAL PURCHASES - BUILDINGS,CAPITAL EXPENDITURE,INTERSERVE (FACILITIES MANAGEMENT) LTD,544828,36228.84,omitted
Department of Health,Maidstone and Tunbridge Wells NHS Trust,29/01/2014,STOCK - DRUGS,CONTROL ACCOUNTS (BALANCE SHT),ROCHE PRODUCTS LTD,30134604,25759.2,omitted
Department of Health,Maidstone and Tunbridge Wells NHS Trust,29/01/2014,STOCK - DRUGS,CONTROL ACCOUNTS (BALANCE SHT),ROCHE PRODUCTS LTD,30134942,38996.52,omitted
Department of Health,Maidstone and Tunbridge Wells NHS Trust,14/01/2014,CHILDCARE VOUCHERS,HUMAN RESOURCES*,COMPUTERSHARE VOUCHER SERVICES,541601,46657.04,omitted
Department of Health,Maidstone and Tunbridge Wells NHS Trust,23/01/2014,CAPITAL PURCHASES - BUILDINGS,CAPITAL EXPENDITURE,MEDWAY INSULATIONS LTD,544829,41248.8,omitted
Department of Health,Maidstone and Tunbridge Wells NHS Trust,15/01/2014,CLINICAL NEGLIGENCE CNST PREM,MISCELLANEOUS FINANCE,NHS LITIGATION AUTHORITY,543235,855397,omitted
Department of Health,Maidstone and Tunbridge Wells NHS Trust,15/01/2014,LTPS LIAB TO 3RD PARTY SCHEME,MISCELLANEOUS FINANCE,NHS LITIGATION AUTHORITY,543236,26063,omitted
